Cogmind - Beta 12 @@@ ROGUE MODE // 2023.03.17 @ 17:35:51 Player: ZLD1 Result: Destroyed by P-70 Sage with Tesla Rifle Performance ------------- Evolutions (6) 3000 Regions Visited (12) 2400 Robots Destroyed (13) 65 Value Destroyed (508) 508 Prototype IDs (13) 260 Alien Tech Used (0) 0 Bonus (600) 600 TOTAL SCORE: 6833 Bonus ------- Aligned with FarCom 300 Met Data Miner 300 Cogmind --------- Core Integrity 0/1150 Matter 270/300 Energy 100/100 System Corruption 6% Temperature Cool (0) Movement Walking (90) Location -4/Factory Parts ------- > --- POWER (3) -------- (None) > --- PROPULSION (10) -- Potential Leg > --- UTILITY (4) ------ (None) > --- WEAPON (2) ------- (None) > --- INVENTORY (5) ---- Remote Datajack Remote Datajack Peak State ------------ > --- POWER ------------ Light Deuterium Engine Light Nuclear Core > --- PROPULSION ------- VTOL Module VTOL Module Cesium-ion Thruster Cesium-ion Thruster Improved Cesium-ion Thruster Impulse Thruster Impulse Thruster Advanced Surge Thruster > --- UTILITY ---------- Small Storage Unit Advanced ECM Suite > --- WEAPON ----------- Arc Projector Railgun > --- INVENTORY -------- Improved Ion Engine Potential Leg Potential Leg Arc Projector Remote Datajack Remote Datajack [Rating: 61] Favorites ----------- Power Improved Ion Engine Engine Improved Ion Engine Power Core Light Nuclear Core Propulsion Cesium-ion Thruster Leg Aluminum Leg Flight Unit Cesium-ion Thruster Utility Small Storage Unit Device Advanced ECM Suite Storage Small Storage Unit Weapon Improved EM Shotgun Energy Gun Improved EM Shotgun Ballistic Gun Assault Rifle Ballistic Cannon Assault Cannon Special Melee Weapon Improved Datajack Build | -11 -10 -10 -10 -9 -8 -7 -7 -7 -6 -6 -5 -4 ------- Run | Jun Mat Min Exi Min Mat Fac Low Dat Pro Fac Fac Fac Slots Evolved 12 | . . . . . 4 2 . . . 2 2 2 Power 2 | . . . . . 1 . . . . 1 . . Propulsion 8 | . . . . . 3 2 . . . 1 . 2 Utility 2 | . . . . . . . . . . . 2 . Weapon . | . . . . . . . . . . . . . Parts Attached 63 | 6 6 . 2 . 15 11 1 . 3 1 5 13 Power 13 | 1 1 . . . 2 3 . . . 1 2 3 Engine 12 | 1 1 . . . 1 3 . . . 1 2 3 Core 1 | . . . . . 1 . . . . . . . Reactor . | . . . . . . . . . . . . . Propulsion 25 | 2 2 . 2 . 8 5 . . . . 1 5 Treads . | . . . . . . . . . . . . . Leg 14 | 2 2 . 2 . 3 4 . . . . . 1 Wheel . | . . . . . . . . . . . . . Hover . | . . . . . . . . . . . . . Flight 11 | . . . . . 5 1 . . . . 1 4 Utility 4 | 1 . . . . 1 1 . . . . 1 . Device 2 | . . . . . 1 1 . . . . . . Storage 2 | 1 . . . . . . . . . . 1 . Processor . | . . . . . . . . . . . . . Hackware . | . . . . . . . . . . . . . Protection . | . . . . . . . . . . . . . Artifact . | . . . . . . . . . . . . . Weapon 21 | 2 3 . . . 4 2 1 . 3 . 1 5 Energy Gun 14 | . 3 . . . 2 2 . . 3 . 1 3 Energy Cannon . | . . . . . . . . . . . . . Ballistic Gun 4 | 2 . . . . . . . . . . . 2 Ballistic Cannon 1 | . . . . . . . 1 . . . . . Launcher . | . . . . . . . . . . . . . Special Weapon . | . . . . . . . . . . . . . Impact Weapon . | . . . . . . . . . . . . . Slashing Weapon . | . . . . . . . . . . . . . Piercing Weapon . | . . . . . . . . . . . . . Special Melee Weapon 2 | . . . . . 2 . . . . . . . Unidentified Prototypes 5 | . 1 . 1 . . 2 . . . . 1 . Parts Lost 19 | . 1 . . . 1 . . . . . . 17 Power 4 | . 1 . . . . . . . . . . 3 Propulsion 10 | . . . . . 1 . . . . . . 9 Utility 2 | . . . . . . . . . . . . 2 Weapon 3 | . . . . . . . . . . . . 3 Highest Loss Streak 13 | . 1 . . . 1 . . . . . . 13 To Critical Strikes 1 | . . . . . . . . . . . . 1 Average Slot Usage (%) 68 | . 83 85 84 85 82 62 69 69 69 60 51 25 Engine 10 | . 12 14 14 14 17 7 7 7 7 6 4 2 Core 2 | . . . . . . 7 7 7 7 6 5 1 Leg 13 | . 28 28 27 28 20 3 . . . . . . Flight 16 | . . . . . 16 33 38 38 38 33 28 13 Device 2 | . . . . . 1 2 7 7 7 6 5 2 Storage 8 | . 14 14 14 14 9 7 7 7 7 6 5 2 Energy Gun 9 | . 4 28 28 28 10 . . . . . . . Ballistic Gun 1 | . 23 . . . . . . . . . . 1 Special Melee Weapon 1 | . . . . . 6 . . . . . . . Naked Turns 29 | . . . . . . . . . . . . 29 Heaviest Build 28 | 14 18 18 18 18 26 18 18 18 18 18 18 28 Greatest Support 73 | 20 20 20 60 60 73 30 24 18 18 18 24 28 Greatest Overweight (x) 4 | . . . . . 4 . . . . . . 2 Average Overweight (x) . | . . . . . . . . . . . . . Largest Inventory Capacity 10 | 8 8 8 8 8 8 8 8 8 8 8 10 8 Average Capacity 7 | 6 8 8 8 8 8 8 8 8 8 8 8 6 Most Carried 8 | 5 8 8 8 8 8 8 8 8 8 8 8 8 Average Carried 7 | 1 2 7 8 8 7 7 8 8 7 7 7 4 Final Capacity 8 | 8 8 8 8 8 8 8 8 8 8 8 8 5 Final Carried 8 | . 7 8 8 8 8 8 8 8 8 8 8 2 Class Distribution -------------------- 64% | Mutant 35% | Sprinter Dominant Class ---------------- Mutant | -10/Materials Mutant | -10/Mines Mutant | -10/Exiles Mutant | -9/Mines Mutant | -8/Materials Sprinter | -7/Factory Sprinter | -7/Lower Caves Sprinter | -7/Data Miner Sprinter | -6/Proximity Caves Sprinter | -6/Factory Sprinter | -5/Factory Mutant | -4/Factory Resources | -11 -10 -10 -10 -9 -8 -7 -7 -7 -6 -6 -5 -4 ----------- Run | Jun Mat Min Exi Min Mat Fac Low Dat Pro Fac Fac Fac Matter Collected 791 | 119 118 18 . 57 228 . 36 . 17 . . 198 Remotely . | . . . . . . . . . . . . . Salvage Created 665 | . 176 . . . 358 . . . . . . 131 Parts 37 | . 9 . . . 15 . . . . . . 13 Haulers Intercepted . | . . . . . . . . . . . . . Recyclers Shooed 1 | . 1 . . . . . . . . . . . Parts Field Recycled . | . . . . . . . . . . . . . Retrieved Matter . | . . . . . . . . . . . . . Parts Self-Destructed 1 | . . . . . . . . . 1 . . . Prevented . | . . . . . . . . . . . . . Kills | -11 -10 -10 -10 -9 -8 -7 -7 -7 -6 -6 -5 -4 ------- Run | Jun Mat Min Exi Min Mat Fac Low Dat Pro Fac Fac Fac Combat Hostiles Destroyed 11 | . 4 . . . 6 . . . . . . 1 Guns 11 | . 4 . . . 6 . . . . . . 1 Classes Destroyed 4 | . 1 . . . 1 . . . . . . 2 Worker 1 | . . . . . . . . . . . . 1 Builder 1 | . . . . . . . . . . . . 1 Grunt 7 | . 4 . . . 3 . . . . . . . Sentry 4 | . . . . . 3 . . . . . . 1 Best Kill Streak 2 | . 2 . . . 2 . . . . . . 2 Combat Bots Only 2 | . 2 . . . 2 . . . . . . 1 Max Kills in Single Turn 1 | . 1 . . . 1 . . . . . . 1 Gunslinging . | . . . . . . . . . . . . . Exploded . | . . . . . . . . . . . . . Melee . | . . . . . . . . . . . . . Uniques/NPCs Destroyed . | . . . . . . . . . . . . . Combat | -11 -10 -10 -10 -9 -8 -7 -7 -7 -6 -6 -5 -4 -------- Run | Jun Mat Min Exi Min Mat Fac Low Dat Pro Fac Fac Fac Damage Taken 3494 | . 438 . . . 533 . . . 35 . 16 2472 Core 1263 | . 59 . . . 27 . . . 19 . . 1158 Absorbed by Shields . | . . . . . . . . . . . . . Core Remaining (%) 94 | 100 . . . 76 95 . . . 97 100 100 . Volleys Fired 47 | . 15 . . . 18 . . . . . . 14 Largest 2 | . 2 . . . 2 . . . . . . 2 Hottest 110 | . 40 . . . 90 . . . . . . 110 Shots Fired 87 | . 30 . . . 36 . . . . . . 21 Gun 87 | . 30 . . . 36 . . . . . . 21 Cannon . | . . . . . . . . . . . . . Launcher . | . . . . . . . . . . . . . Special . | . . . . . . . . . . . . . Kinetic 40 | . 30 . . . . . . . . . . 10 Thermal . | . . . . . . . . . . . . . Explosive . | . . . . . . . . . . . . . Electromagnetic 47 | . . . . . 36 . . . . . . 11 Robot Hit Streak 11 | . 6 . . . 11 . . . . . . 7 Robot Miss Streak 3 | . 2 . . . 3 . . . . . . 3 Penetration Max 2 | . . . . . . . . . . . . 2 Secondary Targets 2 | . 1 . . . 1 . . . . . . . Max Gunslinging Chain 1 | . 1 . . . 1 . . . . . . . Shots Hit Robots 69 | . 22 . . . 34 . . . . . . 13 Core Hits 39 | . 10 . . . 19 . . . . . . 10 Critical Kills . | . . . . . . . . . . . . . Critical Parts Destroyed 1 | . 1 . . . . . . . . . . . Critical Strikes 2 | . 1 . . . . . . . . . . 1 Destroy 2 | . 1 . . . . . . . . . . 1 Melee Attacks 4 | . . . . . 4 . . . . . . . Impact . | . . . . . . . . . . . . . Slashing . | . . . . . . . . . . . . . Piercing . | . . . . . . . . . . . . . Sneak Attacks . | . . . . . . . . . . . . . Combat Hostiles . | . . . . . . . . . . . . . Follow-up Attacks . | . . . . . . . . . . . . . Damage Inflicted 1267 | . 281 . . . 608 . . . . . . 378 Guns 1170 | . 281 . . . 559 . . . . . . 330 Cannons . | . . . . . . . . . . . . . Explosions 49 | . . . . . 49 . . . . . . . Melee . | . . . . . . . . . . . . . Ramming 48 | . . . . . . . . . . . . 48 Kinetic 552 | . 281 . . . . . . . . . . 271 Thermal 49 | . . . . . 49 . . . . . . . Explosive . | . . . . . . . . . . . . . Electromagnetic 618 | . . . . . 559 . . . . . . 59 Impact . | . . . . . . . . . . . . . Slashing . | . . . . . . . . . . . . . Piercing . | . . . . . . . . . . . . . Highest Corruption 6 | . 4 4 4 4 . . . . . . . 6 Average Corruption 3 | . 4 4 4 4 . . . . . . . 3 Corruption Purged . | . . . . . . . . . . . . . Corruption Blocked . | . . . . . . . . . . . . . Effects 18 | . . 9 6 1 . . . . . . . 2 Message Errors 4 | . . 2 2 . . . . . . . . . Matter Fused 3 | . . 1 1 . . . . . . . . 1 Heat Flow Errors 3 | . . 1 2 . . . . . . . . . Energy Discharges 2 | . . 2 . . . . . . . . . . Parts Fused 1 | . . . . . . . . . . . . 1 Data Loss (minor) 4 | . . 2 1 1 . . . . . . . . Data Loss (major) 1 | . . 1 . . . . . . . . . . Overload Shots . | . . . . . . . . . . . . . Overflow Damage . | . . . . . . . . . . . . . Projectiles . | . . . . . . . . . . . . . Explosions . | . . . . . . . . . . . . . Melee . | . . . . . . . . . . . . . Knockbacks 1 | . . . . . . . . . . . . 1 Impact 1 | . . . . . . . . . . . . 1 Kinetic . | . . . . . . . . . . . . . Secondary . | . . . . . . . . . . . . . Self-Inflicted Damage 48 | . . . . . 33 . . . . . . 15 Shots 1 | . . . . . 1 . . . . . . . Rammed 8 | . . . . . . . . . . . . 8 Targets Rammed 20 | . . 1 . . . . . . . . . 19 Kicked 12 | . . 1 . . . . . . . . . 11 Crushed . | . . . . . . . . . . . . . Highest Temperature 443 | . 21 98 259 . 218 426 13 . . . 443 40 Average Temperature 78 | . 11 54 107 . 79 101 8 . . . 195 17 Received Heat Transfer 570 | . 264 . . . 243 . . . . . . 63 Effects 3 | . . . . . . 2 . . . . 1 . Shutdowns 3 | . . . . . . 2 . . . . 1 . Siege Activations . | . . . . . . . . . . . . . Robots Corrupted . | . . . . . . . . . . . . . Combat Hostiles . | . . . . . . . . . . . . . Parts Fried 5 | . . . . . 5 . . . . . . . Impact Corruptions . | . . . . . . . . . . . . . Robots Melted . | . . . . . . . . . . . . . Combat Hostiles . | . . . . . . . . . . . . . Parts Melted . | . . . . . . . . . . . . . Heat Transferred 50 | . . . . . 50 . . . . . . . Parts Sabotaged . | . . . . . . . . . . . . . Parts Stolen . | . . . . . . . . . . . . . Parts Stripped . | . . . . . . . . . . . . . Power Chain Reactions 1 | . . . . . 1 . . . . . . . Missiles Intercepted . | . . . . . . . . . . . . . Alert | -11 -10 -10 -10 -9 -8 -7 -7 -7 -6 -6 -5 -4 ------- Run | Jun Mat Min Exi Min Mat Fac Low Dat Pro Fac Fac Fac Peak Influence 459 | . 120 46 . . 155 53 . . . 459 299 378 Initial 459 | . . 46 . . . 38 . . . 459 224 146 Average 101 | . 71 46 . . 54 43 . . . 459 259 207 Maximum Alert Level 2 | . . . . . . . . . . 2 1 1 Low Security (%) 82 | 100 100 100 . 100 100 100 . . . . . 64 Level 1 15 | . . . . . . . . . . . 100 35 Level 2 1 | . . . . . . . . . . 100 . . Level 3 . | . . . . . . . . . . . . . Level 4 . | . . . . . . . . . . . . . Level 5 . | . . . . . . . . . . . . . High Security . | . . . . . . . . . . . . . Max Security . | . . . . . . . . . . . . . Squads Dispatched 4 | . . . . . 1 . . . . . 1 2 Investigation . | . . . . . . . . . . . . . Extermination 1 | . . . . . . . . . . . . 1 Reinforcement 3 | . . . . . 1 . . . . . 1 1 Assault . | . . . . . . . . . . . . . Garrison . | . . . . . . . . . . . . . Intercept . | . . . . . . . . . . . . . Searches Triggered . | . . . . . . . . . . . . . Construction Impeded 1 | . . . . . . . . . . . . 1 Haulers Reinforced . | . . . . . . . . . . . . . Active Scanning Responses . | . . . . . . . . . . . . . Cargo Convoy Interrupts . | . . . . . . . . . . . . . Stealth | -11 -10 -10 -10 -9 -8 -7 -7 -7 -6 -6 -5 -4 --------- Run | Jun Mat Min Exi Min Mat Fac Low Dat Pro Fac Fac Fac Distress Signals 4 | . 1 . . . 1 . . . 1 . . 1 Communications Jammed . | . . . . . . . . . . . . . Distress Signals . | . . . . . . . . . . . . . Times Spotted 66 | . 9 . . . 12 . . . 9 . 7 29 Peak Tracking Total 13 | . 6 . . . 3 1 . . 4 . 6 13 Tactical Retreats 8 | . . . . . . . . . 1 . 1 6 Traps | -11 -10 -10 -10 -9 -8 -7 -7 -7 -6 -6 -5 -4 ------- Run | Jun Mat Min Exi Min Mat Fac Low Dat Pro Fac Fac Fac Traps Triggered 2 | . . . . . 1 . . . . . 1 . Indirectly . | . . . . . . . . . . . . . Trap Hack Attempts . | . . . . . . . . . . . . . Triggered . | . . . . . . . . . . . . . Disarmed . | . . . . . . . . . . . . . Reprogrammed . | . . . . . . . . . . . . . Reused . | . . . . . . . . . . . . . Traps Extracted . | . . . . . . . . . . . . . Installed . | . . . . . . . . . . . . . Triggered . | . . . . . . . . . . . . . Machines | -11 -10 -10 -10 -9 -8 -7 -7 -7 -6 -6 -5 -4 ---------- Run | Jun Mat Min Exi Min Mat Fac Low Dat Pro Fac Fac Fac Machines Disabled . | . . . . . . . . . . . . . Max in Single Turn . | . . . . . . . . . . . . . Machines Repaired . | . . . . . . . . . . . . . Machines Sabotaged . | . . . . . . . . . . . . . Overloaded Fab Kills . | . . . . . . . . . . . . . Hacking | -11 -10 -10 -10 -9 -8 -7 -7 -7 -6 -6 -5 -4 --------- Run | Jun Mat Min Exi Min Mat Fac Low Dat Pro Fac Fac Fac Machines Accessed 8 | . . . . . 1 2 . 4 . . . 1 Terminals 2 | . . . . . 1 . . . . . . 1 Fabricators 1 | . . . . . . 1 . . . . . . Repair Stations . | . . . . . . . . . . . . . Recycling Units . | . . . . . . . . . . . . . Scanalyzers 1 | . . . . . . 1 . . . . . . Garrison Access . | . . . . . . . . . . . . . Total Hacks 36 | . . . . . 2 3 . 29 . . . 2 Successful 35 | . . . . . 2 2 . 29 . . . 2 Failed 1 | . . . . . . 1 . . . . . . Catastrophic . | . . . . . . . . . . . . . Database Lockouts . | . . . . . . . . . . . . . Manual 1 | . . . 1 . . . . . . . . . Terminals 4 | . . . . . 2 . . . . . . 2 Fabricators 1 | . . . . . . 1 . . . . . . Repair Stations . | . . . . . . . . . . . . . Recycling Units . | . . . . . . . . . . . . . Scanalyzers 2 | . . . . . . 2 . . . . . . Garrison Access . | . . . . . . . . . . . . . Terminal Hacks 33 | . . . . . 2 . . 29 . . . 2 Record 15 | . . . . . 2 . . 11 . . . 2 Part Schematic 10 | . . . . . . . . 10 . . . . Robot Schematic 5 | . . . . . . . . 5 . . . . Prototype ID Bank 3 | . . . . . . . . 3 . . . . Fabricator Hacks 1 | . . . . . . 1 . . . . . . Network Status 1 | . . . . . . 1 . . . . . . Repair Station Hacks . | . . . . . . . . . . . . . Recycling Unit Hacks . | . . . . . . . . . . . . . Scanalyzer 1 | . . . . . . 1 . . . . . . Insert Component 1 | . . . . . . 1 . . . . . . Garrison Access Hacks . | . . . . . . . . . . . . . Unauthorized Hacks . | . . . . . . . . . . . . . Terminals . | . . . . . . . . . . . . . Fabricators . | . . . . . . . . . . . . . Repair Stations . | . . . . . . . . . . . . . Recycling Units . | . . . . . . . . . . . . . Scanalyzers . | . . . . . . . . . . . . . Garrison Access . | . . . . . . . . . . . . . Data Cores Recovered . | . . . . . . . . . . . . . Used . | . . . . . . . . . . . . . Hacking Detections 1 | . . . . . . 1 . . . . . . Full Trace Events . | . . . . . . . . . . . . . Feedback Events . | . . . . . . . . . . . . . Feedback Blocked . | . . . . . . . . . . . . . Robot Schematics Acquired 5 | . . . . . . . . 5 . . . . Robots Built . | . . . . . . . . . . . . . Authchips . | . . . . . . . . . . . . . Time . | . . . . . . . . . . . . . Total Robot Build Rating . | . . . . . . . . . . . . . Part Schematics Acquired 10 | . . . . . . . . 10 . . . . Parts Built . | . . . . . . . . . . . . . Authchips . | . . . . . . . . . . . . . Time . | . . . . . . . . . . . . . Total Part Build Rating . | . . . . . . . . . . . . . Parts Repaired . | . . . . . . . . . . . . . Time . | . . . . . . . . . . . . . Parts Recycled . | . . . . . . . . . . . . . Recycled Matter . | . . . . . . . . . . . . . Retrieved Matter . | . . . . . . . . . . . . . Retrieved Components . | . . . . . . . . . . . . . Parts Scanalyzed . | . . . . . . . . . . . . . Part Schematics Acquired . | . . . . . . . . . . . . . Parts Damaged . | . . . . . . . . . . . . . Bothacking | -11 -10 -10 -10 -9 -8 -7 -7 -7 -6 -6 -5 -4 ------------ Run | Jun Mat Min Exi Min Mat Fac Low Dat Pro Fac Fac Fac Used RIF Installer . | . . . . . . . . . . . . . Robots Hacked 1 | . . . . . 1 . . . . . . . Non-combat 1 | . . . . . 1 . . . . . . . Combat . | . . . . . . . . . . . . . Robot Hacks Applied 1 | . . . . . 1 . . . . . . . parse_system 1 | . . . . . 1 . . . . . . . Relay Couplers Released . | . . . . . . . . . . . . . Fabnet Peak Effective % . | . . . . . . . . . . . . . Robots Rewired . | . . . . . . . . . . . . . Allies Hacked . | . . . . . . . . . . . . . Hacks Repelled . | . . . . . . . . . . . . . Allies | -11 -10 -10 -10 -9 -8 -7 -7 -7 -6 -6 -5 -4 -------- Run | Jun Mat Min Exi Min Mat Fac Low Dat Pro Fac Fac Fac Total Allies 2 | . . 1 . . . . . . 1 . . . Largest Group 1 | . . 1 . . . . . . 1 . . . Highest-Rated Group 96 | . . 31 . . . . . . 96 . . . Highest-Rated Ally 96 | . . 31 . . . . . . 96 . . . Total Orders . | . . . . . . . . . . . . . Ally Attacks 6 | . . . . . . . . . 6 . . . Total Damage 47 | . . . . . . . . . 47 . . . Kills 1 | . . . . . . . . . 1 . . . Allies Corrupted . | . . . . . . . . . . . . . Allies Melted . | . . . . . . . . . . . . . Intel | -11 -10 -10 -10 -9 -8 -7 -7 -7 -6 -6 -5 -4 ------- Run | Jun Mat Min Exi Min Mat Fac Low Dat Pro Fac Fac Fac Robot Analysis Total . | . . . . . . . . . . . . . Derelict Logs Recovered 2 | . . . . . . . . . 2 . . . Drone Launches . | . . . . . . . . . . . . . Drone Recoveries . | . . . . . . . . . . . . . Exploration | -11 -10 -10 -10 -9 -8 -7 -7 -7 -6 -6 -5 -4 ------------- Run | Jun Mat Min Exi Min Mat Fac Low Dat Pro Fac Fac Fac Turns Passed 2539 | 43 182 365 209 40 513 330 65 27 201 24 209 331 Spaces Moved 4175 | 38 97 302 215 45 363 823 243 103 671 84 534 657 Core 111 | 19 . . . . . . . . . . . 92 Treads . | . . . . . . . . . . . . . Legs 962 | 19 97 302 215 45 275 9 . . . . . . Wheels . | . . . . . . . . . . . . . Hover . | . . . . . . . . . . . . . Flight 3102 | . . . . . 88 814 243 103 671 84 534 565 Fastest Speed 18 | 50 120 120 45 90 36 23 23 26 26 26 23 18 Average Speed 46 | 85 120 120 95 90 80 28 25 26 26 26 25 38 Slowest Speed 385 | 120 120 120 120 90 385 90 26 26 26 26 26 150 Overloaded Moves 50 | . . . 50 . . . . . . . . . Propulsion Burnouts . | . . . . . . . . . . . . . Robots Hopped 24 | . . . . . . 5 . . . . 7 12 Cave-ins Triggered . | . . . . . . . . . . . . . Exploration Rate (%) 33 | 4 28 69 41 21 33 21 44 69 66 3 11 24 Regions Visited 12 Branch Regions 6 Pre-discovered Areas 1 | . . . . . . . . 1 . . . . Known Exits Taken . | . . . . . . . . . . . . . Unknown Exits Taken 12 | 1 1 1 1 1 1 1 1 1 1 1 1 . Scrap Searched 5 | . . 1 . 1 . . 2 . 1 . . . Spaces Dug . | . . . . . . . . . . . . . Terrain Destroyed 6 | . . . . . 6 . . . . . . . Melee . | . . . . . . . . . . . . . Projectile . | . . . . . . . . . . . . . AOE 6 | . . . . . 6 . . . . . . . Terrain Rammed . | . . . . . . . . . . . . . Walls Destroyed . | . . . . . . . . . . . . . Machines Disabled . | . . . . . . . . . . . . . Actions | -11 -10 -10 -10 -9 -8 -7 -7 -7 -6 -6 -5 -4 --------- Run | Jun Mat Min Exi Min Mat Fac Low Dat Pro Fac Fac Fac Total 4640 | 48 135 305 218 44 549 914 244 102 698 85 597 701 Wait 282 | . . . . . 131 67 . . 22 . 59 3 Move 4115 | 37 96 301 214 44 362 812 242 102 670 83 519 633 Hop 24 | . . . . . . 5 . . . . 7 12 Pick Up 37 | 5 13 2 . . 7 6 . . . . 2 2 Fast Attach 22 | 1 . . 2 . 5 6 1 . . . 4 3 Attach 35 | 5 6 . . . 5 4 . . 3 1 1 10 Detach 14 | . . . . . 3 2 . . 3 1 1 4 Swap 6 | . . . . . 5 1 . . . . . . Drop 34 | . 5 1 2 . 9 11 1 . . . 4 1 Fire 47 | . 15 . . . 18 . . . . . . 14 Melee 4 | . . . . . 4 . . . . . . . Ram 8 | . . . . . . . . . . . . 8 Kick 12 | . . 1 . . . . . . . . . 11 Crush . | . . . . . . . . . . . . . Escape Stasis . | . . . . . . . . . . . . . Rewire . | . . . . . . . . . . . . . Trap . | . . . . . . . . . . . . . Miscellaneous . | . . . . . . . . . . . . . Route ------- -11/Junkyard -10/Materials -10/Mines (discovered 3 exits: [*Mat x2] / *Exi) -10/Exiles -9/Mines -8/Materials -7/Factory -7/Lower Caves -7/Data Miner -6/Proximity Caves -6/Factory (discovered 2 exits: [*Fac] / Low) -5/Factory (discovered 2 exits: *Fac / Upp) -4/Factory History --------- Turn | Location | Event 6 | -11/Junkyard | Discovered new exit (range 15) 44 | -11/Junkyard | Entered Materials 154 | -10/Materials | Discovered new exit (range 15) 226 | -10/Materials | Entered Mines 316 | -10/Mines | Build established: Mutant 318 | -10/Mines | Received a Mining Laser from a helpful Derelict 318 | -10/Mines | Discovered new exit (range 5) 395 | -10/Mines | Discovered new exit (range 8) 587 | -10/Mines | Deemed a non-threat by the Exiles lab entrance 587 | -10/Mines | Discovered new exit (range 5) 591 | -10/Mines | Entered Exiles 621 | -10/Exiles | Met 8R-AWN 642 | -10/Exiles | Met EX-HEX 677 | -10/Exiles | Met EX-BIN 692 | -10/Exiles | Aligned with FarCom system 693 | -10/Exiles | Given EX-Vault access code 721 | -10/Exiles | Opened EX-Vault 728 | -10/Exiles | Found Prototype Leg 728 | -10/Exiles | Identified Potential Leg 731 | -10/Exiles | Found Potential Leg 750 | -10/Exiles | Warned to stay clear of 0b10 Research branches 789 | -10/Exiles | Discovered new exit (range 14) 800 | -10/Exiles | Left Exiles lab with Potential Leg 800 | -10/Exiles | Entered Mines 827 | -9/Mines | Discovered new exit (range 12) 840 | -9/Mines | Entered Materials 840 | -8/Materials | Evolved 4 slots: Power x1, Propulsion x3 1345 | -8/Materials | Discovered new exit (range 14) 1353 | -8/Materials | Entered Factory 1353 | -7/Factory | Evolved 2 slots: Propulsion x2 1678 | -7/Factory | Discovered new exit (range 5) 1683 | -7/Factory | Entered Lower Caves 1702 | -7/Lower Caves | Build established: Sprinter 1746 | -7/Lower Caves | A Derelict revealed a hidden shortcut to meet someone special 1748 | -7/Lower Caves | Entered Data Miner 1748 | -7/Data Miner | Discovered new exit (range 6) 1753 | -7/Data Miner | Met Data Miner 1761 | -7/Data Miner | Learned location of Section 7 (-3) 1761 | -7/Data Miner | Acquired the access code to Warlord's prototype stash 1763 | -7/Data Miner | Received God Mode back door access code from Data Miner 1775 | -7/Data Miner | Entered Proximity Caves 1777 | -6/Proximity Caves | Spotter reported a threat 1778 | -6/Proximity Caves | Spotter reported a threat 1837 | -6/Proximity Caves | Unaware initiated a cargo recovery operation 1877 | -6/Proximity Caves | Spotter reported a threat 1881 | -6/Proximity Caves | Learned location of 1 exit from Factory 1972 | -6/Proximity Caves | Discovered new exit (range 16) 1976 | -6/Proximity Caves | Entered Factory 1976 | -6/Factory | Evolved 2 slots: Power x1, Propulsion x1 1977 | -6/Factory | Identified exit to Lower Caves 1982 | -6/Factory | Discovered new exit (range 16) 2000 | -6/Factory | Entered another Factory area 2000 | -5/Factory | Evolved 2 slots: Utility x2 2001 | -5/Factory | Identified exit to Upper Caves 2203 | -5/Factory | Discovered new exit (range 12) 2209 | -5/Factory | Entered another Factory area 2209 | -4/Factory | Evolved 2 slots: Propulsion x2 2381 | -4/Factory | Lost 13 parts (2p8n1u2w) 2458 | -4/Factory | Core integrity fell below 50% 2521 | -4/Factory | Core integrity fell below 20% 2540 | -4/Factory | Destroyed by P-70 Sage with Tesla Rifle Last Messages --------------- 02440_ Imp. Ion Engine destroyed. 02448_ K-01 Serf collects debris. 02459_ ALERT: Rogue bot located, Programmers report to Factory Zone 2T. 02465_ System corrupted: Field Propulsion Array fused. 02483_ S-27 Virus destroyed. 02484_ K-01 Serf collects debris. 02500_ Field Propulsion Array destroyed. 02504_ Slammed into A-15 Conveyor. 02512_ Slammed into S-27 Virus. 02520_ Slammed into U-05 Engineer. 02530_ Kicked S-27 Virus. 02531_ Kicked S-27 Virus out of the way. 02532_ Kicked S-27 Virus. 02535_ Kicked S-27 Virus out of the way. 02536_ Kicked P-70 Sage. 02537_ P-70 Sage resets S-27 Virus, system corruption cleaned. 02538_ Kicked P-70 Sage. 02539_ Kicked P-70 Sage out of the way. 02540_ Kicked S-27 Virus out of the way. Map ----- +----------------------------------------------------+ | #?? ???# """" """" ##??????????????? | | ######+#### """" """" ##???????????????? | | * """" """" "" "" #????????????????? | | % """" """" ""F"" +????????????????? | | """" """" """ #????????????????? | | #????????????????? | | #????????????????? | | ######+########## #????????????????? | | # #???# #????????????????? | | #"S """ #???# #????????????????? | | #""" """ #???# #????????????????? | | # "" """ #???# #????????????????? | | # #???# #????????????????? | | # #???# #????????????????? | | # #???# #????????????????? | | ############????# #????????????????? | | ????????????????####+### #????#######?????? | | ???????????????????????# #????# #?????? | | ???????????????????????# ###### #?????? | | ???????????????????????+ #?????? | | ##?????????????????????# ###### #?????? | | #?????????????????????## ##????# w #?????? | | #??????????????????????# #########/######### | | #??????????????????????# psp / # | | #??????????????????????#p###### """ """ """ """ # | | #??????????????????????#@#????# """ """ """ """ # | | #??????????????????????#s#????# """ """ """ """ # | | #?????????????????????##p###### "" "" "" # | | #?????????????????????#sss ## "" "" "" # | | #?????????????????????# sp ## # | | ##?????????????????????# ###########/######## | | ###+###????????????????# #?????????# #??????? | | =* ????????????########?????????# #??????? | | * ????????????????????????????# #??????? | | """ ""?????????????????????????????# #??????? | | "" """???????????BB???????????????????# #??????? | | T ""????????????BB???????????????????# #??????? | | "" ????????????????????????????????# #??????? | | ???????????????????????????????? ???????? | | ???????????????????????????????? ???????? | | ###### ???????????????????????????????? ???????? | | ??????? ???????????????????????????????? ???????? | | ????????????????????????????????????????? ???????? | | ????????????????????????????????????????? ???????? | | ????????????????????????????????????????? ???????? | | ?????????????????????????????????????????????????? | | ?????????????????????????????????????????????????? | | ?????????????????????????????????????????????????? | | ?????????????????????????????????????????????????? | | ?????????????????????????????????????????????????? | +----------------------------------------------------+ Best States ------------- Heat Dissipation 43 Energy Generation 30 Energy Capacity 430 Matter Stores 300 Matter Capacity 300 Sight Range 16 Terrain Scan Density 10 ECM Strength 2 Evasion (%) 65 Item Schematics ----------------- Combat Drone Bay | -7/Data Miner | Free Lgt. Regenerative Plating | -7/Data Miner | Free Cld. Aerolev Unit | -7/Data Miner | Free Gravity Neutralizer | -7/Data Miner | Free Field Propulsion Drive | -7/Data Miner | Free Cld. Plasma Cannon | -7/Data Miner | Free Centrium Wheel | -7/Data Miner | Free Imp. System Shield | -7/Data Miner | Free Imp. Thermal Shield | -7/Data Miner | Free Lrn. Proton Cannon | -7/Data Miner | Free Robot Schematics ------------------ M-22 Extractor | -7/Data Miner | Free M-14 Sweeper | -7/Data Miner | Free B-48 Gladiator | -7/Data Miner | Free X-62 Marksman | -7/Data Miner | Free C-35 Carver | -7/Data Miner | Free Fabricated ------------ Nothing Alien Tech Used ----------------- None Achievements -------------- I'm Back, Baby! Leap Before You Look The Oracle Challenges ------------ None Game ------ Seed NeutrinoSpikedGuard Manual? 0 Play Time 00:58:05 Cumulative 10.1 hours Start 2023.03.17 @ 14:35:44 End 2023.03.17 @ 17:35:51 Sessions 3 Manual Loads 0 Difficulty Rogue Special Mode None Game No. 23 Rogue 23 Adventurer 0 Explorer 0 Win Type - Total 0 Types 0/0/0/0/0/0/0/0/0 Lore% 15 Gallery% 18 Achievement% 14 Wizard Run 0 Options --------- ASCII 0 Keyboard 0 Movement Mouse Keybinds 0 Fullscreen 1 Font 24/Smallcaps Map View 64x52 Tactical HUD 1 Map Filters NONE Filters NONE Steam 1 RUN: 750a490f-f0f5-47be-9093-64a0ec00962f